[Event "Live Chess"]
[Site "Chess.com"]
[Date "2024.06.01"]
[Round "-"]
[White "DylanMeyer1"]
[Black "oscalik"]
[Result "0-1"]
[WhiteElo "1709"]
[BlackElo "2332"]
[TimeControl "300"]
[EndTime "14:53:54 PDT"]
[Termination "oscalik won on time"]

1. c4 {[%clk 0:04:57.8]} 1... Nf6 {[%clk 0:04:57.5]} 2. Nc3 {[%clk 0:04:57]}
2... c5 {[%clk 0:04:56]} 3. g3 {[%clk 0:04:56.3]} 3... d5 {[%clk 0:04:54.9]} 4.
cxd5 {[%clk 0:04:54.6]} 4... Nxd5 {[%clk 0:04:54.6]} 5. Bg2 {[%clk 0:04:52]}
5... Nc7 {[%clk 0:04:53.9]} 6. b3 {[%clk 0:04:47.6]} 6... Nc6 {[%clk 0:04:53.2]}
7. Bb2 {[%clk 0:04:46.9]} 7... e5 {[%clk 0:04:52.8]} 8. d3 {[%clk 0:04:45.6]}
8... Be7 {[%clk 0:04:52.4]} 9. Nf3 {[%clk 0:04:44.5]} 9... O-O {[%clk 0:04:52]}
10. O-O {[%clk 0:04:44.1]} 10... Bd7 {[%clk 0:04:50.1]} 11. Rc1 {[%clk
0:04:40.3]} 11... Rc8 {[%clk 0:04:49.4]} 12. e3 {[%clk 0:04:38.7]} 12... b6
{[%clk 0:04:48.2]} 13. d4 {[%clk 0:04:38]} 13... cxd4 {[%clk 0:04:46.5]} 14.
exd4 {[%clk 0:04:37.4]} 14... Bg4 {[%clk 0:04:36.8]} 15. Qd2 {[%clk 0:04:33.6]}
15... Bxf3 {[%clk 0:04:33]} 16. Bxf3 {[%clk 0:04:32.2]} 16... Nxd4 {[%clk
0:04:31.9]} 17. Qd3 {[%clk 0:04:21.5]} 17... Nxf3+ {[%clk 0:04:25.8]} 18. Qxf3
{[%clk 0:04:20.3]} 18... Ne6 {[%clk 0:04:24.6]} 19. Nd5 {[%clk 0:04:09.8]} 19...
Rxc1 {[%clk 0:04:18.3]} 20. Nxe7+ {[%clk 0:04:06.9]} 20... Qxe7 {[%clk
0:04:16.5]} 21. Rxc1 {[%clk 0:04:05.9]} 21... Nd4 {[%clk 0:04:04.7]} 22. Qe4
{[%clk 0:03:57.9]} 22... Rd8 {[%clk 0:04:02.1]} 23. Rd1 {[%clk 0:03:49.9]} 23...
f5 {[%clk 0:03:21.4]} 24. Qd3 {[%clk 0:03:42.2]} 24... b5 {[%clk 0:03:00.9]} 25.
Rc1 {[%clk 0:02:57.1]} 25... e4 {[%clk 0:02:45.3]} 26. Qe3 {[%clk 0:02:38]}
26... Nf3+ {[%clk 0:02:40.1]} 27. Kg2 {[%clk 0:02:36.8]} 27... h6 {[%clk
0:02:28.9]} 28. h4 {[%clk 0:01:00.4]} 28... Kh7 {[%clk 0:02:26.3]} 29. Qf4
{[%clk 0:00:53.5]} 29... Qe6 {[%clk 0:01:36.1]} 30. Rc7 {[%clk 0:00:47.3]} 30...
Rd7 {[%clk 0:01:35.3]} 31. b4 {[%clk 0:00:17.4]} 31... Ne1+ {[%clk 0:01:31.3]}
32. Kh2 {[%clk 0:00:15.9]} 32... Nd3 {[%clk 0:01:31.2]} 33. Rxd7 {[%clk
0:00:00.9]} 33... Qxd7 {[%clk 0:01:23.4]} 0-1

[Event "Live Chess"]
[Site "Chess.com"]
[Date "2024.06.01"]
[Round "-"]
[White "ShanthamGrarks"]
[Black "DoggyDalmatian"]
[Result "1-0"]
[WhiteElo "1717"]
[BlackElo "1535"]
[TimeControl "300"]
[EndTime "14:54:01 PDT"]
[Termination "ShanthamGrarks won by resignation"]

1. d4 {[%clk 0:04:53.2]} 1... d5 {[%clk 0:04:58.3]} 2. Nc3 {[%clk 0:04:52.7]}
2... Nf6 {[%clk 0:04:55.9]} 3. Bf4 {[%clk 0:04:45.6]} 3... c6 {[%clk 0:04:54.3]}
4. e3 {[%clk 0:04:44.5]} 4... e6 {[%clk 0:04:48.1]} 5. Nf3 {[%clk 0:04:42]} 5...
Bd6 {[%clk 0:04:44.9]} 6. Ne5 {[%clk 0:04:39.7]} 6... O-O {[%clk 0:04:42.3]} 7.
g4 {[%clk 0:04:38.6]} 7... Bxe5 {[%clk 0:04:23.6]} 8. dxe5 {[%clk 0:04:35.7]}
8... Nfd7 {[%clk 0:04:20.5]} 9. Bd3 {[%clk 0:04:34.7]} 9... Nc5 {[%clk
0:04:17.7]} 10. Bxh7+ {[%clk 0:04:29.3]} 10... Kxh7 {[%clk 0:04:15.4]} 11. g5
{[%clk 0:04:29.2]} 11... Ne4 {[%clk 0:04:08.7]} 12. Qh5+ {[%clk 0:04:20.2]}
12... Kg8 {[%clk 0:04:06.1]} 13. Nxe4 {[%clk 0:04:17.7]} 13... dxe4 {[%clk
0:04:04.3]} 14. Rg1 {[%clk 0:04:11.1]} 14... g6 {[%clk 0:04:02.9]} 15. Qh6
{[%clk 0:04:07.7]} 15... Re8 {[%clk 0:04:00.6]} 16. h4 {[%clk 0:04:00.6]} 16...
Qe7 {[%clk 0:03:57.1]} 17. h5 {[%clk 0:03:57.4]} 17... Qf8 {[%clk 0:03:52.3]}
18. hxg6 {[%clk 0:03:56.4]} 18... fxg6 {[%clk 0:03:46.9]} 19. Qxg6+ {[%clk
0:03:53.7]} 19... Qg7 {[%clk 0:03:44.4]} 20. Qh5 {[%clk 0:03:52.7]} 20... Bd7
{[%clk 0:03:39]} 21. g6 {[%clk 0:03:51.8]} 21... Rf8 {[%clk 0:03:35.3]} 22. Bh6
{[%clk 0:03:48.7]} 22... Rf5 {[%clk 0:03:32.5]} 23. Qh4 {[%clk 0:03:23.9]} 1-0

[Event "Live Chess"]
[Site "Chess.com"]
[Date "2024.06.01"]
[Round "-"]
[White "StoreySniper"]
[Black "MellowAesthetic"]
[Result "1-0"]
[WhiteElo "2534"]
[BlackElo "2075"]
[TimeControl "300"]
[EndTime "14:54:21 PDT"]
[Termination "StoreySniper won by resignation"]

1. c4 {[%clk 0:04:58.1]} 1... e5 {[%clk 0:04:58.6]} 2. g3 {[%clk 0:04:57]} 2...
Nf6 {[%clk 0:04:57.7]} 3. Bg2 {[%clk 0:04:56.7]} 3... d5 {[%clk 0:04:57.4]} 4.
cxd5 {[%clk 0:04:55.4]} 4... Nxd5 {[%clk 0:04:57]} 5. Nc3 {[%clk 0:04:55.1]}
5... Nb6 {[%clk 0:04:56.3]} 6. e3 {[%clk 0:04:52.7]} 6... Nc6 {[%clk 0:04:55.5]}
7. Nge2 {[%clk 0:04:52.2]} 7... Be6 {[%clk 0:04:54]} 8. d4 {[%clk 0:04:50.5]}
8... exd4 {[%clk 0:04:51.5]} 9. exd4 {[%clk 0:04:49]} 9... Nd5 {[%clk
0:04:41.5]} 10. O-O {[%clk 0:04:47.3]} 10... Qd7 {[%clk 0:04:35.5]} 11. Bxd5
{[%clk 0:04:45.3]} 11... Bxd5 {[%clk 0:04:34.2]} 12. Nf4 {[%clk 0:04:44.9]}
12... Ne7 {[%clk 0:04:16.5]} 13. Re1 {[%clk 0:04:40.3]} 13... c6 {[%clk
0:03:37.2]} 14. Bd2 {[%clk 0:04:30.8]} 14... O-O-O {[%clk 0:03:27.1]} 15. Qa4
{[%clk 0:04:26.5]} 15... Kb8 {[%clk 0:03:25.2]} 16. b4 {[%clk 0:04:07.8]} 16...
g5 {[%clk 0:02:44]} 17. Nd3 {[%clk 0:03:53.7]} 17... Qh3 {[%clk 0:02:42.7]} 18.
Nxd5 {[%clk 0:03:52.6]} 18... Nxd5 {[%clk 0:02:41.9]} 19. Bxg5 {[%clk
0:03:46.6]} 19... f6 {[%clk 0:02:35.8]} 20. Bf4+ {[%clk 0:03:41.6]} 20... Ka8
{[%clk 0:02:20.4]} 21. b5 {[%clk 0:03:39.6]} 21... Nc3 {[%clk 0:02:15.1]} 22.
Qa5 {[%clk 0:03:29.5]} 1-0

[Event "Live Chess"]
[Site "Chess.com"]
[Date "2024.06.01"]
[Round "-"]
[White "lateforthesky"]
[Black "McFim"]
[Result "1-0"]
[WhiteElo "2133"]
[BlackElo "1622"]
[TimeControl "300"]
[EndTime "14:54:28 PDT"]
[Termination "lateforthesky won by resignation"]

1. e4 {[%clk 0:04:54.2]} 1... c6 {[%clk 0:04:58.5]} 2. Nf3 {[%clk 0:04:52.4]}
2... d5 {[%clk 0:04:57.9]} 3. exd5 {[%clk 0:04:51.8]} 3... cxd5 {[%clk
0:04:57.1]} 4. Ne5 {[%clk 0:04:51.4]} 4... Nf6 {[%clk 0:04:52.4]} 5. d4 {[%clk
0:04:50.5]} 5... Nc6 {[%clk 0:04:47.8]} 6. Bb5 {[%clk 0:04:49.2]} 6... Bd7
{[%clk 0:04:46.3]} 7. Nxd7 {[%clk 0:04:47.1]} 7... Qxd7 {[%clk 0:04:44.4]} 8.
O-O {[%clk 0:04:46]} 8... a6 {[%clk 0:04:38.4]} 9. Be2 {[%clk 0:04:37]} 9... e6
{[%clk 0:04:37]} 10. c3 {[%clk 0:04:36]} 10... Bd6 {[%clk 0:04:35.3]} 11. f4
{[%clk 0:04:33.2]} 11... g6 {[%clk 0:04:33.5]} 12. Nd2 {[%clk 0:04:32.1]} 12...
h5 {[%clk 0:04:26.7]} 13. Nf3 {[%clk 0:04:30.6]} 13... Ne4 {[%clk 0:04:09.8]}
14. Ne5 {[%clk 0:04:25.4]} 14... Qc7 {[%clk 0:04:01.6]} 15. Bd3 {[%clk
0:04:24.1]} 15... Rg8 {[%clk 0:03:27.5]} 16. Qe2 {[%clk 0:04:20.3]} 16... f5
{[%clk 0:03:19.6]} 17. Be3 {[%clk 0:04:14.3]} 17... Nxe5 {[%clk 0:03:06.5]} 18.
fxe5 {[%clk 0:04:12.3]} 18... Be7 {[%clk 0:03:03.8]} 19. Rac1 {[%clk 0:04:02.3]}
19... b5 {[%clk 0:02:58.3]} 20. a4 {[%clk 0:03:59.1]} 20... Rb8 {[%clk
0:02:49.3]} 21. axb5 {[%clk 0:03:56.7]} 21... axb5 {[%clk 0:02:47.9]} 22. Bxb5+
{[%clk 0:03:54.9]} 22... Kf7 {[%clk 0:02:46.6]} 23. Bd3 {[%clk 0:03:52.2]} 23...
Rb6 {[%clk 0:02:38]} 24. c4 {[%clk 0:03:50.7]} 24... Qb7 {[%clk 0:02:34.8]} 25.
Rc2 {[%clk 0:03:42.1]} 25... Rb8 {[%clk 0:02:31.8]} 26. Bc1 {[%clk 0:03:35.5]}
26... Kg7 {[%clk 0:02:19.3]} 27. c5 {[%clk 0:03:27.9]} 27... Rb3 {[%clk
0:02:12.2]} 28. Bxe4 {[%clk 0:03:17.5]} 28... dxe4 {[%clk 0:02:10.3]} 29. Qc4
{[%clk 0:03:09.9]} 29... Qc6 {[%clk 0:02:05.8]} 30. Rc3 {[%clk 0:02:41.1]} 30...
R3b4 {[%clk 0:01:58.8]} 31. Qe2 {[%clk 0:02:39.5]} 31... Rxd4 {[%clk 0:01:51.1]}
32. Qe3 {[%clk 0:02:32.2]} 32... Bxc5 {[%clk 0:01:05.8]} 33. Qh6+ {[%clk
0:02:30.3]} 33... Kf7 {[%clk 0:01:01.9]} 34. Qh7+ {[%clk 0:02:28.7]} 34... Ke8
{[%clk 0:00:56.5]} 35. Qxg6+ {[%clk 0:02:12.5]} 35... Kd7 {[%clk 0:00:54.1]} 36.
Be3 {[%clk 0:02:09.2]} 36... Rd5 {[%clk 0:00:48.4]} 37. Bxc5 {[%clk 0:02:03.2]}
37... Rxc5 {[%clk 0:00:45.8]} 38. Rd1+ {[%clk 0:02:02]} 38... Kc7 {[%clk
0:00:43.9]} 39. Qf7+ {[%clk 0:01:58.3]} 39... Kb6 {[%clk 0:00:39.3]} 40. Rd6
{[%clk 0:01:55.6]} 1-0

[Event "Live Chess"]
[Site "Chess.com"]
[Date "2024.06.01"]
[Round "-"]
[White "nigelst"]
[Black "NebodarMatevich"]
[Result "1/2-1/2"]
[WhiteElo "1676"]
[BlackElo "1562"]
[TimeControl "300"]
[EndTime "14:54:29 PDT"]
[Termination "Game drawn by repetition"]

1. e4 {[%clk 0:04:57.2]} 1... d5 {[%clk 0:04:58.4]} 2. exd5 {[%clk 0:04:55]}
2... Qxd5 {[%clk 0:04:57.6]} 3. Nc3 {[%clk 0:04:53.8]} 3... Qd6 {[%clk
0:04:56.2]} 4. d4 {[%clk 0:04:52.6]} 4... Nf6 {[%clk 0:04:55.2]} 5. Nf3 {[%clk
0:04:51.3]} 5... a6 {[%clk 0:04:53.6]} 6. Bc4 {[%clk 0:04:46.6]} 6... b5 {[%clk
0:04:51]} 7. Bb3 {[%clk 0:04:42.4]} 7... c5 {[%clk 0:04:50.1]} 8. a4 {[%clk
0:04:39.1]} 8... b4 {[%clk 0:04:46]} 9. dxc5 {[%clk 0:04:33.4]} 9... Qxd1+
{[%clk 0:04:44.4]} 10. Nxd1 {[%clk 0:04:31.6]} 10... Bb7 {[%clk 0:04:40.5]} 11.
Ne5 {[%clk 0:04:21.8]} 11... e6 {[%clk 0:04:30.8]} 12. O-O {[%clk 0:04:19.1]}
12... Bxc5 {[%clk 0:04:28.4]} 13. Be3 {[%clk 0:04:15.8]} 13... Bxe3 {[%clk
0:04:25.9]} 14. Nxe3 {[%clk 0:04:14.3]} 14... O-O {[%clk 0:04:25.2]} 15. N3c4
{[%clk 0:04:09.7]} 15... Nc6 {[%clk 0:04:15.8]} 16. Nxc6 {[%clk 0:04:07]} 16...
Bxc6 {[%clk 0:04:14.6]} 17. Ne5 {[%clk 0:04:05.2]} 17... Bb7 {[%clk 0:04:07.8]}
18. Rfd1 {[%clk 0:04:02.4]} 18... Rfd8 {[%clk 0:04:06]} 19. f3 {[%clk 0:03:54]}
19... h6 {[%clk 0:04:03.1]} 20. Kf2 {[%clk 0:03:52]} 20... Nd5 {[%clk
0:03:57.7]} 21. g3 {[%clk 0:03:45.7]} 21... Kf8 {[%clk 0:03:45.4]} 22. Rd3
{[%clk 0:03:43.2]} 22... Ke7 {[%clk 0:03:43.9]} 23. Rad1 {[%clk 0:03:38.7]}
23... Rac8 {[%clk 0:03:40.4]} 24. Nc4 {[%clk 0:03:34.7]} 24... Rc7 {[%clk
0:03:19.3]} 25. Ne3 {[%clk 0:03:28.4]} 25... Rcd7 {[%clk 0:03:15.6]} 26. Nxd5+
{[%clk 0:03:24.2]} 26... Bxd5 {[%clk 0:03:14.3]} 27. Bxd5 {[%clk 0:03:23.2]}
27... Rxd5 {[%clk 0:03:13.5]} 28. Rxd5 {[%clk 0:03:21.8]} 28... Rxd5 {[%clk
0:03:11.9]} 29. Rxd5 {[%clk 0:03:17.9]} 29... exd5 {[%clk 0:03:11.1]} 30. Ke3
{[%clk 0:03:17.2]} 30... a5 {[%clk 0:03:10.3]} 31. Kd4 {[%clk 0:03:16]} 31...
Kd6 {[%clk 0:03:08.9]} 32. f4 {[%clk 0:03:07.7]} 32... f5 {[%clk 0:03:06]} 33.
h3 {[%clk 0:03:05.2]} 33... h5 {[%clk 0:03:04.9]} 34. b3 {[%clk 0:02:55.7]}
34... h4 {[%clk 0:02:36.7]} 35. gxh4 {[%clk 0:02:51]} 35... g6 {[%clk
0:02:35.4]} 36. c4 {[%clk 0:02:33]} 36... bxc3 {[%clk 0:02:26.9]} 37. Kxc3
{[%clk 0:02:29.3]} 37... Kc5 {[%clk 0:02:26]} 38. h5 {[%clk 0:02:14.3]} 38...
gxh5 {[%clk 0:02:24.6]} 39. h4 {[%clk 0:02:13.3]} 39... d4+ {[%clk 0:02:23.6]}
40. Kd3 {[%clk 0:02:12.2]} 40... Kb4 {[%clk 0:02:22.8]} 41. Kxd4 {[%clk
0:02:11.4]} 41... Kxb3 {[%clk 0:02:22.2]} 42. Ke5 {[%clk 0:01:49.8]} 42... Kxa4
{[%clk 0:02:20.6]} 43. Kxf5 {[%clk 0:01:49]} 43... Kb3 {[%clk 0:02:18.6]} 44.
Kg5 {[%clk 0:01:41.9]} 44... a4 {[%clk 0:02:17.1]} 45. f5 {[%clk 0:01:41]} 45...
a3 {[%clk 0:02:16.6]} 46. f6 {[%clk 0:01:38.6]} 46... a2 {[%clk 0:02:15.9]} 47.
f7 {[%clk 0:01:37.2]} 47... a1=Q {[%clk 0:02:11.1]} 48. f8=Q {[%clk 0:01:35.5]}
48... Qc1+ {[%clk 0:02:06.9]} 49. Kxh5 {[%clk 0:01:32.1]} 49... Qd1+ {[%clk
0:02:05.5]} 50. Kg5 {[%clk 0:01:30.4]} 50... Qg1+ {[%clk 0:02:04]} 51. Kh5
{[%clk 0:01:28]} 51... Qd1+ {[%clk 0:02:02.8]} 52. Kh6 {[%clk 0:01:20.4]} 52...
Qd2+ {[%clk 0:02:00.8]} 53. Kh7 {[%clk 0:01:06.5]} 53... Qd3+ {[%clk 0:01:52.3]}
54. Kh6 {[%clk 0:00:52.5]} 54... Qe3+ {[%clk 0:01:50.2]} 55. Kh5 {[%clk
0:00:49.4]} 55... Qe2+ {[%clk 0:01:48.5]} 56. Kg5 {[%clk 0:00:47.2]} 56... Qg2+
{[%clk 0:01:46.7]} 57. Kh5 {[%clk 0:00:43.9]} 57... Qe2+ {[%clk 0:01:45.6]} 58.
Kh6 {[%clk 0:00:37.8]} 58... Qe3+ {[%clk 0:01:44.1]} 59. Kh5 {[%clk 0:00:22.1]}
59... Qe2+ {[%clk 0:01:42.9]} 1/2-1/2

[Event "Live Chess"]
[Site "Chess.com"]
[Date "2024.06.01"]
[Round "-"]
[White "Dhaydon19"]
[Black "CCGoodKnightRookie"]
[Result "1-0"]
[WhiteElo "2677"]
[BlackElo "2358"]
[TimeControl "300"]
[EndTime "14:54:36 PDT"]
[Termination "Dhaydon19 won by resignation"]

1. d4 {[%clk 0:04:57.8]} 1... d5 {[%clk 0:04:59.2]} 2. Nf3 {[%clk 0:04:56.2]}
2... e6 {[%clk 0:04:57]} 3. g3 {[%clk 0:04:55.7]} 3... c5 {[%clk 0:04:56.2]} 4.
c3 {[%clk 0:04:53.8]} 4... Nc6 {[%clk 0:04:55.6]} 5. Bg2 {[%clk 0:04:52.6]} 5...
cxd4 {[%clk 0:04:55.2]} 6. Nxd4 {[%clk 0:04:51.8]} 6... Bd6 {[%clk 0:04:54]} 7.
Nxc6 {[%clk 0:04:51.5]} 7... bxc6 {[%clk 0:04:53.9]} 8. O-O {[%clk 0:04:50.9]}
8... Nf6 {[%clk 0:04:53]} 9. Nd2 {[%clk 0:04:49.2]} 9... O-O {[%clk 0:04:52.4]}
10. e4 {[%clk 0:04:48.5]} 10... dxe4 {[%clk 0:04:51.8]} 11. Nxe4 {[%clk
0:04:47.7]} 11... Nxe4 {[%clk 0:04:51.1]} 12. Bxe4 {[%clk 0:04:47.4]} 12... Bb7
{[%clk 0:04:50.6]} 13. Qf3 {[%clk 0:04:46.5]} 13... Qc7 {[%clk 0:04:49.5]} 14.
Qh5 {[%clk 0:04:43.3]} 14... g6 {[%clk 0:04:47.9]} 15. Qh6 {[%clk 0:04:41.4]}
15... Rfe8 {[%clk 0:04:45.3]} 16. Bg5 {[%clk 0:04:39.5]} 16... c5 {[%clk
0:04:40.2]} 17. Bf6 {[%clk 0:04:32.9]} 17... Bf8 {[%clk 0:04:38.4]} 18. Qe3
{[%clk 0:04:32.2]} 18... Bg7 {[%clk 0:04:34.2]} 19. Bxg7 {[%clk 0:04:30.1]}
19... Kxg7 {[%clk 0:04:34.1]} 20. Bxb7 {[%clk 0:04:28.2]} 20... Qxb7 {[%clk
0:04:33.5]} 21. b3 {[%clk 0:04:27]} 21... Rac8 {[%clk 0:04:31.5]} 22. Rad1
{[%clk 0:04:25]} 22... c4 {[%clk 0:04:26.5]} 23. b4 {[%clk 0:04:22.6]} 23...
Red8 {[%clk 0:04:20.7]} 24. Qe5+ {[%clk 0:04:16.9]} 24... Kg8 {[%clk 0:04:19.1]}
25. Rd4 {[%clk 0:04:13.2]} 25... Rxd4 {[%clk 0:04:16.5]} 26. Qxd4 {[%clk
0:04:12.4]} 26... Qf3 {[%clk 0:04:07.7]} 27. Re1 {[%clk 0:04:06.8]} 27... Qd3
{[%clk 0:04:01.7]} 28. Rd1 {[%clk 0:04:01.9]} 28... Qc2 {[%clk 0:03:59.1]} 29.
Rd2 {[%clk 0:03:58.9]} 29... Qb1+ {[%clk 0:03:49.7]} 30. Kg2 {[%clk 0:03:56.3]}
30... Qe1 {[%clk 0:03:46.3]} 31. Qd7 {[%clk 0:03:46.8]} 31... Rf8 {[%clk
0:03:31.5]} 32. Qd4 {[%clk 0:03:43.5]} 32... Rc8 {[%clk 0:03:29.2]} 33. Qe3
{[%clk 0:03:41.6]} 33... Qxe3 {[%clk 0:03:17.6]} 34. fxe3 {[%clk 0:03:39.2]}
34... a5 {[%clk 0:03:17]} 35. b5 {[%clk 0:03:35.8]} 35... a4 {[%clk 0:03:08.5]}
36. Rb2 {[%clk 0:03:33.1]} 36... Rb8 {[%clk 0:03:06.4]} 37. Kf3 {[%clk
0:03:32.1]} 37... a3 {[%clk 0:03:01.2]} 38. Rb4 {[%clk 0:03:29.1]} 38... Kf8
{[%clk 0:02:57.5]} 39. Ke4 {[%clk 0:03:28.4]} 39... Ke7 {[%clk 0:02:56.5]} 40.
Kd4 {[%clk 0:03:28]} 40... Kd6 {[%clk 0:02:55.8]} 41. Kxc4 {[%clk 0:03:27.4]}
41... e5 {[%clk 0:02:53.4]} 42. b6 {[%clk 0:03:23.2]} 42... Kc6 {[%clk
0:02:48.6]} 43. b7 {[%clk 0:03:21]} 43... f5 {[%clk 0:02:45.3]} 44. Rb5 {[%clk
0:03:14.2]} 44... e4 {[%clk 0:02:42.9]} 45. Rb3 {[%clk 0:03:08.2]} 45... h6
{[%clk 0:02:40.6]} 46. h4 {[%clk 0:03:00.7]} 46... g5 {[%clk 0:02:39.5]} 47.
hxg5 {[%clk 0:02:59.1]} 47... hxg5 {[%clk 0:02:39.4]} 48. Kd4 {[%clk 0:02:58]}
48... Kd6 {[%clk 0:02:34.5]} 49. c4 {[%clk 0:02:55.4]} 49... Kc6 {[%clk
0:02:29.9]} 50. Rb5 {[%clk 0:02:50.9]} 50... f4 {[%clk 0:02:18]} 51. gxf4 {[%clk
0:02:48.6]} 51... gxf4 {[%clk 0:02:17.2]} 52. exf4 {[%clk 0:02:48.3]} 52... Kc7
{[%clk 0:02:15]} 53. Kxe4 {[%clk 0:02:46.9]} 53... Re8+ {[%clk 0:02:13.5]} 54.
Kd4 {[%clk 0:02:43.3]} 54... Kb8 {[%clk 0:02:12.7]} 55. c5 {[%clk 0:02:38.9]}
55... Rd8+ {[%clk 0:02:11]} 56. Kc4 {[%clk 0:02:37.6]} 56... Rd2 {[%clk
0:02:10.1]} 57. c6 {[%clk 0:02:36.5]} 57... Rc2+ {[%clk 0:02:08.4]} 58. Kd5
{[%clk 0:02:35.8]} 58... Rd2+ {[%clk 0:02:01.6]} 59. Kc5 {[%clk 0:02:34.9]}
59... Rc2+ {[%clk 0:02:00.2]} 60. Kb6 {[%clk 0:02:34.1]} 60... Rc3 {[%clk
0:01:48.3]} 61. f5 {[%clk 0:02:32.7]} 61... Rc5 {[%clk 0:01:44.1]} 62. Kxc5
{[%clk 0:02:29.8]} 1-0

[Event "Live Chess"]
[Site "Chess.com"]
[Date "2024.06.01"]
[Round "-"]
[White "WelshTiger"]
[Black "peteopeteo"]
[Result "1-0"]
[WhiteElo "2512"]
[BlackElo "1574"]
[TimeControl "300"]
[EndTime "14:54:39 PDT"]
[Termination "WelshTiger won - game abandoned"]

1. e4 {[%clk 0:04:55.6]} 1... c6 {[%clk 0:04:59.3]} 2. d4 {[%clk 0:04:53.4]}
2... d5 {[%clk 0:04:59.2]} 3. Nc3 {[%clk 0:04:52.2]} 3... dxe4 {[%clk
0:04:56.2]} 4. Nxe4 {[%clk 0:04:51.5]} 4... Nf6 {[%clk 0:04:55.9]} 5. Nxf6+
{[%clk 0:04:50.6]} 5... exf6 {[%clk 0:04:55.1]} 6. c3 {[%clk 0:04:49.8]} 6...
Bd6 {[%clk 0:04:49.4]} 7. Bd3 {[%clk 0:04:47.9]} 7... O-O {[%clk 0:04:48.1]} 8.
Qc2 {[%clk 0:04:46.2]} 8... Re8+ {[%clk 0:04:42.7]} 9. Ne2 {[%clk 0:04:45.8]}
9... g6 {[%clk 0:04:32.9]} 10. h4 {[%clk 0:04:43.5]} 10... Qe7 {[%clk
0:04:25.2]} 11. h5 {[%clk 0:04:40.9]} 11... Nd7 {[%clk 0:04:24.2]} 12. hxg6
{[%clk 0:04:39.6]} 12... fxg6 {[%clk 0:04:23.9]} 13. Bxg6 {[%clk 0:04:32.6]}
13... Qxe2+ {[%clk 0:04:23.1]} 14. Qxe2 {[%clk 0:04:31.2]} 14... Rxe2+ {[%clk
0:04:23]} 15. Kxe2 {[%clk 0:04:30.2]} 15... hxg6 {[%clk 0:04:22.9]} 16. b3
{[%clk 0:04:01.1]} 16... Nb6 {[%clk 0:04:12.8]} 17. c4 {[%clk 0:03:59.9]} 17...
Bg4+ {[%clk 0:03:54.7]} 18. f3 {[%clk 0:03:55.8]} 18... Re8+ {[%clk 0:03:53.3]}
19. Kf2 {[%clk 0:03:55.1]} 19... Bf5 {[%clk 0:03:40.4]} 20. c5 {[%clk
0:03:54.1]} 20... Bxc5 {[%clk 0:03:33.3]} 21. dxc5 {[%clk 0:03:53.2]} 21... Nd5
{[%clk 0:03:32.7]} 22. Bd2 {[%clk 0:03:48.7]} 22... Rd8 {[%clk 0:03:29.4]} 23.
g4 {[%clk 0:03:40.9]} 23... Be6 {[%clk 0:03:12.4]} 24. Rhe1 {[%clk 0:03:37.5]}
24... Kf7 {[%clk 0:03:10.2]} 25. Rh1 {[%clk 0:03:31]} 25... g5 {[%clk
0:03:04.1]} 26. Rh7+ {[%clk 0:03:26]} 26... Kg6 {[%clk 0:03:02.5]} 27. Rxb7
{[%clk 0:03:25.6]} 27... Rh8 {[%clk 0:02:49.5]} 28. Kg3 {[%clk 0:03:19.9]} 28...
Ra8 {[%clk 0:02:34.8]} 29. Re1 {[%clk 0:03:18.4]} 29... Bf7 {[%clk 0:02:31.8]}
30. f4 {[%clk 0:03:17.8]} 30... gxf4+ {[%clk 0:02:29.6]} 31. Bxf4 {[%clk
0:03:17.1]} 31... Nxf4 {[%clk 0:02:29.2]} 32. Kxf4 {[%clk 0:03:16.1]} 32... Rd8
{[%clk 0:02:20.6]} 33. Rxa7 {[%clk 0:03:09.8]} 33... Rd4+ {[%clk 0:02:19.8]} 34.
Re4 {[%clk 0:03:08.9]} 34... Rd2 {[%clk 0:02:18]} 35. Ke3 {[%clk 0:02:54]} 35...
Rd1 {[%clk 0:02:15.1]} 36. Rxf7 {[%clk 0:02:48]} 36... Kxf7 {[%clk 0:02:12.9]}
37. Rd4 {[%clk 0:02:46.2]} 37... Re1+ {[%clk 0:02:09.7]} 38. Kf2 {[%clk
0:02:44.3]} 38... Ra1 {[%clk 0:02:08.5]} 39. a4 {[%clk 0:02:41.8]} 39... Ra2+
{[%clk 0:02:06.7]} 40. Kf3 {[%clk 0:02:39.6]} 40... Rb2 {[%clk 0:02:06]} 41. Rb4
{[%clk 0:02:35.4]} 41... Rc2 {[%clk 0:02:03.8]} 42. Rb7+ {[%clk 0:02:31.9]}
42... Ke6 {[%clk 0:02:02.9]} 43. b4 {[%clk 0:02:31.4]} 43... Rc4 {[%clk
0:02:01.2]} 44. a5 {[%clk 0:02:30]} 44... Ke5 {[%clk 0:01:54.8]} 45. a6 {[%clk
0:02:28]} 45... Rc3+ {[%clk 0:01:53.7]} 46. Kg2 {[%clk 0:02:25]} 46... Kf4
{[%clk 0:01:53]} 47. a7 {[%clk 0:02:22.7]} 47... Kxg4 {[%clk 0:01:52.4]} 48.
a8=Q {[%clk 0:02:19.9]} 48... Rc2+ {[%clk 0:01:51.8]} 49. Kf1 {[%clk 0:02:19]}
49... Kf3 {[%clk 0:01:51.1]} 50. Re7 {[%clk 0:02:11.2]} 1-0

[Event "Live Chess"]
[Site "Chess.com"]
[Date "2024.06.01"]
[Round "-"]
[White "kylet1990"]
[Black "SavagePawn7"]
[Result "1-0"]
[WhiteElo "738"]
[BlackElo "659"]
[TimeControl "300"]
[EndTime "14:55:28 PDT"]
[Termination "kylet1990 won by checkmate"]

1. e4 {[%clk 0:04:58.2]} 1... d5 {[%clk 0:04:57.4]} 2. exd5 {[%clk 0:04:56.3]}
2... Nf6 {[%clk 0:04:55.6]} 3. d4 {[%clk 0:04:51.2]} 3... Nxd5 {[%clk
0:04:55.5]} 4. Bf4 {[%clk 0:04:49.2]} 4... Nc6 {[%clk 0:04:49.7]} 5. Bc4 {[%clk
0:04:46.7]} 5... Be6 {[%clk 0:04:45.3]} 6. Nf3 {[%clk 0:04:42.9]} 6... Nxf4
{[%clk 0:04:40.7]} 7. g3 {[%clk 0:04:36.3]} 7... Bxc4 {[%clk 0:04:18.6]} 8. b3
{[%clk 0:04:22.2]} 8... Bd5 {[%clk 0:04:11.8]} 9. O-O {[%clk 0:04:19.4]} 9...
Nh3+ {[%clk 0:04:00.8]} 10. Kg2 {[%clk 0:04:16.9]} 10... Qc8 {[%clk 0:03:45.4]}
11. Nc3 {[%clk 0:04:12.7]} 11... Bxf3+ {[%clk 0:03:35.9]} 12. Qxf3 {[%clk
0:04:10.6]} 12... e6 {[%clk 0:03:26.2]} 13. d5 {[%clk 0:04:05.3]} 13... Ng5
{[%clk 0:03:20.6]} 14. Qg4 {[%clk 0:03:56.1]} 14... f6 {[%clk 0:03:11.1]} 15.
dxc6 {[%clk 0:03:45]} 15... Bd6 {[%clk 0:03:01.7]} 16. Rfe1 {[%clk 0:03:38.5]}
16... O-O {[%clk 0:02:55.1]} 17. cxb7 {[%clk 0:03:28.3]} 17... Qxb7+ {[%clk
0:02:51]} 18. Kg1 {[%clk 0:03:25.8]} 18... h6 {[%clk 0:02:30]} 19. h4 {[%clk
0:03:24.2]} 19... f5 {[%clk 0:02:17.4]} 20. Qc4 {[%clk 0:03:17.8]} 20... Nf3+
{[%clk 0:02:05.1]} 21. Kf1 {[%clk 0:03:14]} 21... Nxe1 {[%clk 0:02:02.3]} 22.
Qxe6+ {[%clk 0:03:11.2]} 22... Kh7 {[%clk 0:01:55]} 23. Rxe1 {[%clk 0:03:05.5]}
23... Qc6 {[%clk 0:01:38.6]} 24. Nd5 {[%clk 0:02:57]} 24... Rfe8 {[%clk
0:01:33.2]} 25. Qf7 {[%clk 0:02:51.8]} 25... Qxd5 {[%clk 0:01:20.1]} 26. Qxd5
{[%clk 0:02:49.6]} 26... Red8 {[%clk 0:01:08.4]} 27. c4 {[%clk 0:02:37.1]} 27...
Bb4 {[%clk 0:01:03.3]} 28. Qxf5+ {[%clk 0:02:28.9]} 28... Kh8 {[%clk 0:01:00.6]}
29. Re6 {[%clk 0:02:21]} 29... Rd1+ {[%clk 0:00:51.5]} 30. Kg2 {[%clk
0:02:19.2]} 30... Rdd8 {[%clk 0:00:36.3]} 31. Rg6 {[%clk 0:02:09]} 31... Rf8
{[%clk 0:00:31.8]} 32. Qd7 {[%clk 0:02:02.7]} 32... Bc5 {[%clk 0:00:19.7]} 33.
Qxg7# {[%clk 0:01:56.6]} 1-0